[Event "FIDE Women World Rapid 2024"]
[Site "New York"]
[Date "2024.12.27"]
[Round "7.27"]
[White "Noshin, Anjum"]
[Black "Machlik, Monika"]
[Result "1/2-1/2"]
[ECO "B15"]
[WhiteElo "2029"]
[BlackElo "2107"]
[Annotator "NA"]
[PlyCount "139"]
[EventDate "2024.12.14"]
[EventType "swiss"]
[EventCountry "USA"]
[SourceTitle "playchess.com"]
[Source "ChessBase"]
[SourceQuality "1"]
[TimeControl "900+10"]

1. e4 {[%emt 0:00:04]} c6 {[%emt 0:00:00]} 2. d4 {[%emt 0:00:03]} d5 {[%emt 0:00:01]} 3. Nc3 {[%emt 0:00:03]} dxe4 {[%emt 0:00:01]} 4. Nxe4 {[%emt 0:00:01]} Nf6 {[%emt 0:00:01]} 5. Nxf6+ {[%emt 0:00:04]} exf6 {[%emt 0:00:00]} 6. c3 {[%emt 0:00:04]} Bd6 {[%emt 0:00:06]} 7. Bd3 {[%emt 0:00:02]} O-O {[%emt 0:00:06]} 8. Qc2 {[%emt 0:00:02]} Re8+ {[%emt 0:00:01]} 9. Ne2 {[%emt 0:00:02]} h5 {[%emt 0:00:04]} 10. O-O {[%emt 0:00:11]} h4 {[%emt 0:00:17]} 11. h3 {[%emt 0:01:16]} Be6 {[%emt 0:00:35]} 12. Bf4 {[%emt 0:01:56]} Qc7 {[%emt 0:01:52]} 13. Qd2 {[%emt 0:00:23]} Nd7 {[%emt 0:00:56]} 14. Bxd6 {[%emt 0:00:20]} Qxd6 {[%emt 0:00:00]} 15. Qf4 {[%emt 0:00:07]} Qxf4 {[%emt 0:00:46]} 16. Nxf4 {[%emt 0:00:02]} Nb6 {[%emt 0:02:35]} 17. Nxe6 {[%emt 0:01:15]} Rxe6 {[%emt 0:00:30]} 18. a4 {[%emt 0:00:07]} a5 {[%emt 0:00:24]} 19. Ra3 {[%emt 0:00:28]} Re7 {[%emt 0:00:30]} 20. Rfa1 {[%emt 0:01:54]} g6 {[%emt 0:01:05]} 21. Rb3 {[%emt 0:01:50]} Nd5 {[%emt 0:00:05]} 22. Bc4 {[%emt 0:00:01]} Nf4 {[%emt 0:01:06]} 23. Rb6 {[%emt 0:00:12]} Rd8 {[%emt 0:01:00]} 24. b4 {[%emt 0:02:05]} axb4 {[%emt 0:01:56]} 25. Rxb4 {[%emt 0:00:02]} Rde8 {[%emt 0:01:25]} 26. Rab1 {[%emt 0:02:19]} Re1+ {[%emt 0:00:12]} 27. Rxe1 {[%emt 0:00:16]} Rxe1+ {[%emt 0:00:01]} 28. Kh2 {[%emt 0:00:02]} Re7 {[%emt 0:00:13]} 29. a5 {[%emt 0:00:38]} Rc7 {[%emt 0:00:32]} 30. Rb6 {[%emt 0:02:51]} Kg7 {[%emt 0:00:39]} 31. a6 {[%emt 0:00:13]} bxa6 {[%emt 0:00:03]} 32. Rxa6 {[%emt 0:00:04]} Ne6 {[%emt 0:01:43]} 33. Ra5 {[%emt 0:00:52]} Nf4 {[%emt 0:00:18]} 34. g3 {[%emt 0:00:08]} hxg3+ {[%emt 0:00:01]} 35. fxg3 {[%emt 0:00:01]} Ne6 {[%emt 0:00:06]} 36. Bxe6 {[%emt 0:00:16]} fxe6 {[%emt 0:00:01]} 37. Rc5 {[%emt 0:00:12]} Kf7 {[%emt 0:00:20]} 38. c4 {[%emt 0:00:20]} Ke7 {[%emt 0:00:19]} 39. Ra5 {[%emt 0:00:36]} Rb7 {[%emt 0:00:30]} 40. Ra6 {[%emt 0:00:11]} Kd6 {[%emt 0:00:13]} 41. Ra8 {[%emt 0:00:09]} Rb2+ {[%emt 0:00:17]} 42. Kg1 {[%emt 0:00:02]} Rd2 {[%emt 0:00:27]} 43. Rd8+ {[%emt 0:00:13]} Ke7 {[%emt 0:00:10]} 44. Rc8 {[%emt 0:00:05]} Kd7 {[%emt 0:00:20]} 45. Rf8 {[%emt 0:00:04]} Ke7 {[%emt 0:00:27]} 46. Rc8 {[%emt 0:00:05]} Rxd4 {[%emt 0:00:23]} 47. Rxc6 {[%emt 0:00:02]} Kd7 {[%emt 0:00:02]} 48. Rc5 {[%emt 0:00:05]} Kd6 {[%emt 0:00:05]} 49. Rc8 {[%emt 0:00:03]} Kd7 {[%emt 0:00:05]} 50. Rc5 {[%emt 0:00:10]} Kd6 {[%emt 0:00:25]} 51. Rc8 {[%emt 0:00:02]} Ke5 {[%emt 0:00:08]} 52. c5 {[%emt 0:00:40]} Rc4 {[%emt 0:00:02]} 53. c6 {[%emt 0:00:13]} Kd6 {[%emt 0:00:13]} 54. Rf8 {[%emt 0:00:05]} f5 {[%emt 0:00:14]} 55. Rg8 {[%emt 0:00:06]} Rxc6 {[%emt 0:00:05]} 56. Rxg6 {[%emt 0:00:02]} Ke5 {[%emt 0:00:11]} 57. h4 {[%emt 0:00:10]} Ke4 {[%emt 0:00:10]} 58. h5 {[%emt 0:00:30]} Rc1+ {[%emt 0:00:17]} 59. Kg2 {[%emt 0:00:05]} e5 {[%emt 0:00:07]} 60. h6 {[%emt 0:00:09]} Rc8 {[%emt 0:00:07]} 61. h7 {[%emt 0:00:16]} Rh8 {[%emt 0:00:01]} 62. Rh6 {[%emt 0:00:10]} Ke3 {[%emt 0:00:10]} 63. Kh3 {[%emt 0:00:21]} e4 {[%emt 0:00:22]} 64. Kg2 {[%emt 0:00:11]} f4 {[%emt 0:00:12]} 65. gxf4 {[%emt 0:00:11]} Kxf4 {[%emt 0:00:01]} 66. Kf2 {[%emt 0:00:04]} Kg5 {[%emt 0:00:13]} 67. Rh1 {[%emt 0:00:04]} Kg6 {[%emt 0:00:07]} 68. Ke3 {[%emt 0:00:01]} Rxh7 {[%emt 0:00:02]} 69. Rxh7 {[%emt 0:00:02]} Kxh7 {[%emt 0:00:01]} 70. Kxe4 {[%emt 0:00:01]} 1/2-1/2

[Event "FIDE Women World Rapid 2024"]
[Site "New York"]
[Date "2024.12.27"]
[Round "7.28"]
[White "Berezovsky, Fiorina"]
[Black "Naisanga Sheba Valentine"]
[Result "1-0"]
[ECO "D37"]
[WhiteElo "1796"]
[BlackElo "1625"]
[Annotator "NA"]
[PlyCount "89"]
[EventDate "2024.12.14"]
[EventType "swiss"]
[EventCountry "USA"]
[SourceTitle "playchess.com"]
[Source "ChessBase"]
[SourceQuality "1"]
[TimeControl "900+10"]

1. d4 {[%emt 0:00:02]} d5 {[%emt 0:00:01]} 2. Nf3 {[%emt 0:00:02]} e6 {[%emt 0:00:03]} 3. c4 {[%emt 0:00:02]} Be7 {[%emt 0:00:02]} 4. Nc3 {[%emt 0:00:02]} Nf6 {[%emt 0:00:04]} 5. Bf4 {[%emt 0:00:03]} a6 {[%emt 0:00:02]} 6. e3 {[%emt 0:00:04]} O-O {[%emt 0:00:05]} 7. Bd3 {[%emt 0:00:13]} dxc4 {[%emt 0:00:02]} 8. Bxc4 {[%emt 0:00:01]} b5 {[%emt 0:00:02]} 9. Bd3 {[%emt 0:00:10]} Bb7 {[%emt 0:00:01]} 10. Qe2 {[%emt 0:00:19]} Nbd7 {[%emt 0:00:03]} 11. O-O {[%emt 0:00:14]} c5 {[%emt 0:00:02]} 12. dxc5 {[%emt 0:00:18]} Nxc5 {[%emt 0:00:04]} 13. Bc2 {[%emt 0:00:08]} Qb6 {[%emt 0:00:30]} 14. Rad1 {[%emt 0:00:15]} Rfd8 {[%emt 0:00:02]} 15. Bg3 {[%emt 0:01:10]} h6 {[%emt 0:00:26]} 16. Ne5 {[%emt 0:00:21]} Rac8 {[%emt 0:00:31]} 17. Rxd8+ {[%emt 0:00:22]} Rxd8 {[%emt 0:00:06]} 18. Ng4 {[%emt 0:00:41]} Qc6 {[%emt 0:00:39]} 19. Nxf6+ {[%emt 0:00:36]} Bxf6 {[%emt 0:00:04]} 20. f3 {[%emt 0:00:14]} Qb6 {[%emt 0:00:45]} 21. Bf2 {[%emt 0:01:03]} Qd6 {[%emt 0:00:26]} 22. Rd1 {[%emt 0:00:16]} Qe7 {[%emt 0:00:21]} 23. Bb1 {[%emt 0:00:40]} Rxd1+ {[%emt 0:00:07]} 24. Qxd1 {[%emt 0:00:04]} Qd7 {[%emt 0:00:03]} 25. Qc2 {[%emt 0:00:13]} g6 {[%emt 0:00:06]} 26. h4 {[%emt 0:00:26]} h5 {[%emt 0:00:26]} 27. Ne2 {[%emt 0:00:32]} Na4 {[%emt 0:00:27]} 28. b3 {[%emt 0:00:16]} Nb2 {[%emt 0:00:39]} 29. Nd4 {[%emt 0:00:22]} e5 {[%emt 0:00:29]} 30. Qxb2 {[%emt 0:00:23]} exd4 {[%emt 0:00:02]} 31. exd4 {[%emt 0:00:03]} Qd8 {[%emt 0:00:43]} 32. Be4 {[%emt 0:00:16]} Bxe4 {[%emt 0:01:47]} 33. fxe4 {[%emt 0:00:01]} Bxh4 {[%emt 0:00:02]} 34. Be3 {[%emt 0:00:43]} Qf6 {[%emt 0:01:43]} 35. e5 {[%emt 0:00:59]} Qc6 {[%emt 0:00:34]} 36. Qd2 {[%emt 0:00:25]} Bg3 {[%emt 0:00:09]} 37. d5 {[%emt 0:00:14]} Qd7 {[%emt 0:00:50]} 38. Qd4 {[%emt 0:00:37]} Qc7 {[%emt 0:00:42]} 39. d6 {[%emt 0:01:08]} Qc2 {[%emt 0:00:03]} 40. Kh1 {[%emt 0:00:24]} Qc8 {[%emt 0:04:19]} 41. d7 {[%emt 0:00:14]} Qd8 {[%emt 0:00:02]} 42. Bg5 {[%emt 0:00:15]} Qxg5 {[%emt 0:00:19]} 43. d8=Q+ {[%emt 0:00:03]} Qxd8 {[%emt 0:00:12]} 44. Qxd8+ {[%emt 0:00:02]} Kg7 {[%emt 0:00:01]} 45. Qf6+ {[%emt 0:00:09]} 1-0